bitfinex/quotes_ETHUSD_20250604
["timestamp","ask_amount","ask_price","bid_price","bid_amount"]
[1749072108436,0.75,2601.6,2601.5,16.211]
[1749072109001,0.75,2601.6,2601.5,9.924]
[1749072109207,0.75,2601.6,2601.5,16.56932736]
[1749072109437,0.75,2601.6,2601.5,16.56931948]
[1749072110177,0.98698,2601.6,2601.5,16.211]
[1749072110307,0.98698,2601.6,2601.5,16.56907641]
[1749072110509,0.98698,2601.6,2601.5,16.211]
[1749072110760,0.98698,2601.6,2601.5,16.5690798]
[1749072110928,0.98698,2601.6,2601.5,16.211]
[1749072111542,0.98698,2601.6,2601.5,16.56908064]
[1749072111744,0.98698,2601.6,2601.5,16.56908046]
[1749072111950,0.98698,2601.6,2601.5,16.56907416]
[1749072112263,0.98698,2601.6,2601.5,16.211]
[1749072113254,0.98698,2601.6,2601.5,16.56907135]
[1749072113550,0.98698,2601.6,2601.5,16.56909022]
[1749072113845,0.98698,2601.6,2601.5,16.56889717]
[1749072114046,0.75,2601.6,2601.5,16.211]
[1749072114873,0.75,2601.6,2601.5,16.56889614]
[1749072115358,0.2,2601.0,2600.7,30.0]
[1749072115544,0.2,2601.0,2600.9,33.316456]
[1749072115714,0.2,2601.0,2600.9,23.316456]
[1749072116664,0.2,2601.0,2600.9,28.169297]
[1749072117442,0.2,2601.0,2600.9,36.456297]
[1749072118330,0.2,2601.2,2601.0,13.943747]
[1749072123423,0.2,2601.2,2601.0,6.24515262]
[1749072123626,0.02,2601.9,2601.0,6.24515262]
[1749072123627,0.02,2601.9,2601.2,10.2]
[1749072123829,0.02,2601.9,2601.7,26.880048]
[1749072124149,1.6333,2602.5,2601.8,12.73925948]
[1749072124377,1.6333,2602.8,2601.9,10.983071]
[1749072124526,0.55,2602.6,2602.0,0.94155873]
[1749072124732,0.55,2602.6,2602.2,10.0]
[1749072125047,0.62504784,2602.7,2602.3,12.04970524]
[1749072125251,0.62504784,2602.7,2601.7,28.851926]
[1749072125434,0.62504784,2602.7,2601.7,25.807447]
[1749072125693,0.62504784,2602.7,2601.8,20.96778694]
[1749072125831,0.55,2602.6,2601.9,14.535667]
[1749072126033,0.55,2602.6,2602.0,2.99529113]
[1749072126448,0.55,2602.6,2602.2,10.0]
[1749072126620,0.55,2602.6,2602.3,0.95873119]
[1749072127035,0.55,2602.6,2602.3,10.95873119]
[1749072127354,0.55,2602.6,2602.4,0.35770363]
[1749072127565,0.83083478,2602.6,2602.5,10.28270315]
[1749072127756,0.83083478,2602.6,2602.5,9.925]
[1749072128440,0.83083478,2602.6,2602.5,10.28270319]
[1749072128646,2.47643478,2602.6,2602.5,9.925]
[1749072128857,2.47643478,2602.6,2602.5,16.56871539]
[1749072129218,2.47643478,2602.6,2602.5,16.56876153]
[1749072129419,2.47643478,2602.6,2602.5,16.211]
[1749072139868,2.47643478,2602.6,2602.5,9.925]
[1749072140484,2.47643478,2602.6,2602.5,16.21]
[1749072141275,2.47643478,2602.6,2602.5,9.924]
[1749072141584,2.47643478,2602.6,2602.5,16.21]
[1749072141967,2.47643478,2602.6,2602.5,8.287]
[1749072142171,2.47643478,2602.6,2602.5,16.209]
[1749072143686,2.47643478,2602.6,2602.5,16.21]
[1749072144741,2.47643478,2602.6,2602.5,8.287]
[1749072144948,2.47643478,2602.6,2602.5,16.21]
[1749072147283,2.47643478,2602.6,2602.5,8.287]
[1749072147481,2.47643478,2602.6,2602.5,16.211]
[1749072147865,2.47643478,2602.6,2602.5,8.287]
[1749072148064,2.47643478,2602.6,2602.5,16.21]
[1749072153512,2.47643478,2602.6,2602.5,7.923]
[1749072153513,0.83083478,2602.6,2602.5,7.923]
[1749072153986,2.41063478,2602.6,2602.5,7.923]
[1749072158512,2.41063478,2602.6,2602.5,9.924]
[1749072159831,2.41063478,2602.6,2602.5,16.209]
[1749072161403,2.41063478,2602.6,2599.9,0.55]
[1749072161717,0.55,2602.3,2601.2,28.40535142]
[1749072162016,0.55,2602.3,2601.2,30.0]
[1749072162594,0.55,2602.3,2601.4,24.957918]
[1749072162793,0.55,2602.3,2601.4,10.119395]
[1749072163904,0.02,2601.9,2601.4,10.119395]
[1749072167429,0.02,2601.9,2601.5,8.287]
[1749072167614,0.02,2601.9,2601.5,9.924]
[1749072168329,0.02,2601.9,2601.7,4.072882]
[1749072168632,0.02,2601.9,2601.8,6.284]
[1749072171427,0.02,2601.9,2601.8,7.921]
[1749072175294,0.02,2601.9,2601.8,18.20114]
[1749072176238,0.55,2602.4,2601.8,7.921]
[1749072178807,0.55,2602.6,2601.9,12.165349]
[1749072179017,0.02,2602.9,2601.9,12.165349]
[1749072179214,0.55,2602.8,2601.9,12.165349]
[1749072179521,0.02,2602.9,2601.9,12.165349]
[1749072179935,0.02,2602.9,2601.9,16.76252741]
[1749072180144,0.02,2602.9,2602.0,30.0]
[1749072181113,0.02,2602.9,2602.1,4.59717841]
[1749072181342,0.02,2602.9,2602.4,40.0]
[1749072181503,0.02,2602.9,2602.6,28.857286]
[1749072181708,0.02,2602.9,2602.8,10.0]
[1749072181907,0.02,2602.9,2602.8,8.286]
[1749072184062,0.02,2602.9,2602.8,19.054731]
[1749072184243,0.02,2602.9,2602.8,18.055151]
[1749072190510,0.02,2602.9,2602.8,10.58526594]
[1749072195343,0.02,2602.9,2602.8,23.507278]
[1749072199357,0.02,2602.9,2602.8,9.917]
[1749072199660,0.02,2602.9,2602.8,36.821559]
[1749072200667,0.02,2602.9,2602.8,43.099559]
[1749072200863,0.02,2602.9,2602.8,35.186559]
[1749072201067,0.02,2602.9,2602.8,19.319]
[1749072203219,0.02,2602.9,2602.8,13.041]
[1749072203416,0.02,2602.9,2602.8,19.319]
[1749072206764,0.02,2602.9,2602.5,4.59717841]
[1749072206765,0.02,2602.9,2602.3,4.59717841]
[1749072206966,0.02,2602.9,2602.4,26.228654]
[1749072207523,0.02,2602.9,2602.6,26.228654]
[1749072207827,1.762e-05,2602.9,2602.8,20.663014]
[1749072208042,1.762e-05,2602.9,2602.8,10.663014]
[1749072211865,1.762e-05,2602.9,2602.8,1.79613969]
[1749072215288,1.6149,2603.8,2603.0,10.0]
[1749072215426,1.6149,2603.8,2603.2,27.36178]
[1749072215634,1.6149,2603.8,2603.3,17.36178]
[1749072215829,1.6149,2603.8,2603.5,11.119598]
[1749072216044,1.6149,2603.8,2603.7,16.929164]
[1749072216266,1.6149,2603.8,2603.7,8.562164]
[1749072216575,0.02,2603.9,2603.7,1.633]
[1749072216776,0.02,2603.9,2603.8,8.282]
[1749072219596,0.02,2603.9,2603.8,10.594604]
[1749072226787,0.02,2603.9,2603.8,1.633]
[1749072227222,0.02,2603.9,2603.8,16.682176]
[1749072227525,0.02,2603.9,2603.8,24.962176]
[1749072228028,0.02,2603.9,2603.8,31.236176]
[1749072230346,0.02,2603.9,2603.8,30.813937]
[1749072233603,0.02,2603.9,2603.8,9.913]
[1749072233808,0.02,2603.9,2603.8,16.186]
[1749072234232,0.02,2603.9,2603.8,9.913]
[1749072234432,0.02,2603.9,2603.8,16.186]
[1749072235449,1.5703,2603.9,2603.8,16.186]
[1749072235743,1.5703,2603.9,2603.8,9.913]
[1749072235947,1.5703,2603.9,2603.8,16.186]
[1749072240542,1.5703,2603.9,2603.8,8.28]
[1749072240746,1.5703,2603.9,2603.8,16.186]
[1749072245815,1.5703,2603.9,2603.8,9.913]
[1749072246070,1.5703,2603.9,2603.8,16.186]
[1749072249434,1.5703,2603.9,2603.8,9.913]
[1749072249635,1.5703,2603.9,2603.8,16.185]
[1749072250572,1.5703,2603.9,2603.8,9.911]
[1749072250746,2.18704784,2603.9,2603.8,16.183]
[1749072253708,2.18704784,2603.9,2602.7,4.59717841]
[1749072253906,1.5703,2603.9,2602.8,15.049176]
[1749072254061,1.5703,2603.9,2602.9,15.049176]
[1749072254975,1.5703,2603.9,2603.1,25.049176]
[1749072255196,1.5703,2603.9,2603.1,15.049176]
[1749072257229,0.02,2603.9,2603.1,19.64635441]
[1749072257496,0.02,2603.9,2603.2,23.329176]
[1749072257796,0.02,2603.9,2603.5,4.59717841]
[1749072258001,0.00011338,2603.9,2603.7,25.049176]
[1749072258294,0.00011338,2603.9,2603.8,21.321176]
[1749072260069,0.00011338,2603.9,2603.8,10.895015]
[1749072260270,0.00011338,2603.9,2603.2,8.28]
[1749072260271,0.00011338,2603.9,2603.3,10.0]
[1749072260474,0.00011338,2603.9,2603.2,8.28]
[1749072260673,0.00011338,2603.9,2603.4,15.049176]
[1749072261195,0.00011338,2603.9,2603.6,22.162378]
[1749072261399,0.00011338,2603.9,2603.6,9.342266]
[1749072261765,0.00011338,2603.9,2603.7,10.0]
[1749072262375,0.00011338,2603.9,2603.6,7.684592]
[1749072262582,0.00011338,2603.9,2603.7,10.0]
[1749072262800,0.00011338,2603.9,2603.6,5.785592]
[1749072262998,0.00011338,2603.9,2603.7,10.0]
[1749072263601,0.00011338,2603.9,2603.6,3.96802]
[1749072263807,0.00011338,2603.9,2603.7,10.0]
[1749072264269,0.00011338,2603.9,2603.6,4.04587]
[1749072264471,0.00011338,2603.9,2603.7,10.0]
[1749072264785,0.00011338,2603.9,2603.7,15.049176]
[1749072265506,0.00011338,2603.9,2603.7,7.899251]
[1749072265808,0.00011338,2603.9,2603.8,11.18364]
[1749072266311,0.00011338,2603.9,2603.8,10.771051]
[1749072267991,0.00011338,2603.9,2603.8,9.911]
[1749072268308,1.5025,2604.2,2603.8,9.911]
[1749072269116,1.5025,2604.2,2603.9,6.27]
[1749072272922,1.5859,2604.6,2604.0,11.479668]
[1749072274508,5.14717841,2605.0,2604.0,11.479668]
[1749072274808,2.0938,2604.9,2604.0,11.479668]
[1749072275601,4.59717841,2604.8,2604.0,11.479668]
[1749072287222,0.02,2604.9,2604.0,11.479668]
[1749072287400,4.61717841,2604.9,2604.0,11.479668]
[1749072288581,0.02,2604.9,2604.0,11.479668]
[1749072290934,0.02,2604.9,2604.1,10.0]
[1749072291091,0.02,2604.9,2604.2,10.0]
[1749072291430,0.02,2604.9,2604.5,10.0]
[1749072291610,0.02,2604.9,2604.6,1.629]
[1749072291929,0.02,2604.9,2604.7,1.629]
[1749072292106,0.02,2604.9,2604.8,6.266]
[1749072295231,0.02,2604.9,2604.8,14.543]
[1749072300609,0.02,2604.9,2604.8,17.681204]
[1749072300795,0.00042983,2604.9,2604.8,17.681204]
[1749072301408,4.61717841,2605.9,2604.9,30.0]
[1749072301609,4.61717841,2605.9,2604.9,20.377507]
[1749072303246,0.02,2605.9,2604.9,20.377507]
[1749072303447,4.61717841,2605.9,2604.9,20.377507]
[1749072305115,4.59717841,2605.7,2604.9,20.377507]
[1749072305318,4.59717841,2605.7,2605.1,15.690035]
[1749072305640,4.59717841,2605.7,2605.3,10.0]
[1749072305865,4.59717841,2605.5,2604.9,2.112569]
[1749072306065,4.59717841,2605.5,2605.1,10.0]
[1749072306206,4.59717841,2605.5,2605.0,1.627]
[1749072306527,4.59717841,2605.1,2604.8,8.277]
[1749072306705,4.59717841,2605.1,2605.0,10.0]
[1749072307347,4.59717841,2605.1,2605.0,7.89]
[1749072307543,5.11240308,2605.1,2605.0,1.627]
[1749072307747,5.11240308,2605.1,2605.0,7.89]
[1749072307748,5.66240308,2605.1,2605.0,7.89]
[1749072308045,0.55,2605.0,2604.8,8.277]
[1749072308340,7.34811872,2604.9,2604.8,8.277]
[1749072308564,7.34811872,2604.9,2604.8,16.167]
[1749072311257,7.34811872,2604.9,2604.8,9.904]
[1749072311457,7.34811872,2604.9,2604.8,16.167]
[1749072313443,7.34811872,2604.9,2604.8,9.904]
[1749072313654,5.71341872,2604.9,2604.8,16.167]
[1749072314035,0.55,2604.8,2603.1,0.02]
[1749072314235,4.59717841,2604.0,2603.3,6.243447]
[1749072314560,4.59717841,2604.0,2603.5,10.0]
[1749072314759,4.59717841,2604.0,2603.4,10.0]
[1749072314964,4.59717841,2604.0,2603.5,10.0]
[1749072315125,4.59717841,2604.0,2603.4,10.0]
[1749072315321,4.59717841,2604.0,2603.3,10.0]
[1749072315526,4.59717841,2604.0,2603.4,10.0]
[1749072315771,4.59717841,2604.0,2603.3,10.0]
[1749072315949,4.59717841,2604.0,2603.4,10.0]
[1749072316151,4.59717841,2604.0,2603.3,10.0]
[1749072316328,4.59717841,2604.0,2603.4,10.0]
[1749072316534,4.59717841,2604.0,2603.3,10.0]
[1749072316733,4.59717841,2604.0,2603.5,10.0]
[1749072316933,4.59717841,2604.0,2603.2,6.264]
[1749072316934,4.59717841,2604.0,2603.3,10.0]
[1749072317129,4.59717841,2604.0,2603.5,10.0]
[1749072317342,4.59717841,2604.0,2603.3,10.0]
[1749072317542,4.59717841,2604.0,2603.4,9.905]
[1749072318232,4.59717841,2604.0,2603.5,6.264]
[1749072319252,1.5746,2604.1,2603.5,6.264]
[1749072319569,6.17177841,2604.1,2603.5,6.264]
[1749072322464,6.17177841,2604.1,2603.4,9.905]
[1749072322664,6.17177841,2604.1,2603.5,6.264]
[1749072325998,6.17177841,2604.1,2603.4,9.905]
[1749072326187,6.17177841,2604.1,2603.6,6.264]
[1749072331913,6.17177841,2604.1,2603.4,9.905]
[1749072332118,6.17177841,2604.1,2603.7,6.264]
[1749072336554,1.5746,2604.1,2603.7,6.264]
[1749072337109,1.6017,2604.8,2603.8,1.626]
[1749072337309,4.59717841,2604.7,2603.9,2.632138]
[1749072337525,4.59717841,2604.7,2603.9,2.076972]
[1749072337853,4.59717841,2604.7,2603.8,11.626]
[1749072338015,4.59717841,2604.7,2603.9,10.0]
[1749072338346,6.15237841,2604.5,2603.8,11.626]
[1749072338511,6.15237841,2604.5,2603.9,10.0]
[1749072338925,6.15237841,2604.5,2603.8,11.626]
[1749072340146,6.15237841,2604.5,2603.9,10.0]
[1749072340742,6.15237841,2604.5,2603.8,11.626]
[1749072341445,6.15237841,2604.5,2603.9,10.0]
[1749072341748,6.15237841,2604.5,2603.8,11.626]
[1749072341935,6.15237841,2604.5,2603.9,10.0]
[1749072342309,6.15237841,2604.5,2603.8,11.626]
[1749072342927,6.15237841,2604.5,2603.9,10.0]
[1749072343451,6.15237841,2604.5,2604.0,8.279]
[1749072343655,6.15237841,2604.5,2604.1,6.263]
[1749072345478,6.15237841,2604.5,2604.0,8.279]
[1749072345479,4.59717841,2604.3,2604.2,7.888]
[1749072345783,1.5519,2604.2,2604.0,8.279]
[1749072345936,1.5519,2604.2,2604.1,7.888]
[1749072346143,6.14907841,2604.2,2604.1,7.888]
[1749072351087,1.5519,2604.2,2604.1,1.626]
[1749072352307,1.5519,2604.2,2604.1,7.888]
[1749072354891,1.5519,2604.2,2603.2,30.0]
[1749072356175,1.5519,2604.2,2603.1,4.59717841]
[1749072356176,1.5519,2604.2,2603.4,16.3273]
[1749072356371,1.5519,2604.2,2603.5,10.0]
[1749072356706,1.5519,2604.2,2603.7,5.965053]
[1749072356874,1.5519,2604.2,2603.5,4.588953]
[1749072357275,0.02,2603.9,2603.5,4.588953]
[1749072357505,0.00031098,2603.9,2603.6,9.905]
[1749072357712,0.00031098,2603.9,2603.8,10.0]
[1749072357911,0.00031098,2603.9,2603.8,4.042533]
[1749072358674,0.00031098,2603.9,2603.8,10.0]
[1749072359145,0.00031098,2603.9,2603.7,10.0]
[1749072359714,0.00031098,2603.9,2603.8,10.0]
[1749072360145,0.00031098,2603.9,2603.7,10.0]
[1749072360540,0.00031098,2603.9,2603.8,16.261]
[1749072360860,0.00031098,2603.9,2603.8,6.261]
[1749072362526,0.00031098,2603.9,2603.8,7.887]
[1749072364769,0.00031098,2603.9,2603.8,1.626]
[1749072364942,0.00031098,2603.9,2603.8,7.886]
[1749072367375,0.00031098,2603.9,2603.8,16.165]
[1749072367667,0.92939817,2604.2,2603.8,16.165]
[1749072372061,0.92939817,2604.2,2603.9,1.624]
[1749072376687,1.6027,2604.4,2603.9,1.624]
[1749072376839,2.22268784,2604.4,2603.9,1.624]
[1749072379013,2.22268784,2604.4,2604.0,8.279]
[1749072383620,2.22268784,2604.4,2604.1,1.624]
[1749072384818,1.6027,2604.4,2604.1,1.624]
[1749072389321,4.59717841,2604.5,2604.1,1.624]
[1749072393428,3.6728972,2604.4,2604.1,1.624]
[1749072396111,0.2,2604.1,2602.5,0.55]
[1749072396357,0.2,2604.1,2603.3,27.684927]
[1749072396358,0.00683859,2604.1,2603.3,27.684927]
[1749072396614,0.00683859,2604.2,2603.4,1.624]
[1749072397338,0.00683859,2604.2,2603.5,6.256]
[1749072397652,0.00683859,2604.2,2603.6,8.279]
[1749072398114,3.67973579,2604.4,2603.6,8.279]
[1749072398319,0.00683859,2604.2,2603.6,8.279]
[1749072398527,0.02,2603.9,2603.6,8.279]
[1749072398708,0.02,2603.9,2603.7,10.0]
[1749072398905,0.02,2603.9,2603.8,10.0]
[1749072399333,0.02,2603.9,2603.7,10.0]
[1749072399634,0.02,2603.9,2603.8,10.0]
[1749072399840,0.02,2603.9,2603.6,8.279]
[1749072404808,0.02,2603.9,2603.7,1.622]
[1749072405008,0.02,2603.9,2603.7,11.622]
[1749072405931,0.02,2603.9,2603.8,10.0]
[1749072406334,0.00104407,2604.0,2603.7,11.622]
[1749072407408,0.00104407,2604.0,2603.8,10.0]
[1749072407724,0.00104407,2604.0,2603.7,11.622]
[1749072407921,0.00104407,2604.0,2603.8,10.0]
[1749072408237,0.00104407,2604.0,2603.7,11.622]
[1749072408546,5.3142972,2604.4,2603.7,11.622]
[1749072408955,5.3142972,2604.4,2603.8,10.0]
[1749072409121,5.3142972,2604.4,2603.8,2.309716]
[1749072409741,5.3142972,2604.4,2604.1,10.0]
[1749072409937,5.3142972,2604.4,2604.2,6.254]
[1749072410139,5.3142972,2604.4,2604.3,1.622]
[1749072413249,5.84572692,2604.4,2604.3,1.622]
[1749072415314,5.84572692,2604.4,2604.3,9.9]
[1749072418619,5.3142972,2604.4,2604.3,9.9]
[1749072418918,3.6728972,2604.4,2604.3,9.9]
[1749072420459,3.6728972,2604.5,2604.3,9.9]
[1749072430458,3.6728972,2604.5,2604.4,1.619]
[1749072433925,4.2228972,2604.5,2604.4,7.87]
[1749072437588,4.2228972,2604.5,2604.4,16.148]
[1749072437792,5.2927972,2604.7,2604.4,16.148]
[1749072437982,0.55,2604.6,2604.4,16.148]
[1749072442201,0.55,2604.6,2604.5,1.619]
[1749072444625,0.02,2604.9,2604.5,1.619]
[1749072444805,0.02,2604.9,2604.6,10.0]
[1749072447505,0.02,2604.9,2604.6,13.689207]
[1749072447685,0.02,2604.9,2604.6,3.571241]
[1749072448726,0.02,2604.9,2604.6,2.100351]
[1749072449130,0.02,2604.9,2604.6,10.0]
[1749072449493,0.02,2604.9,2604.5,11.619]
[1749072449823,0.02,2604.9,2604.6,13.685743]
[1749072450029,0.02,2604.9,2604.7,10.0]
[1749072450191,0.02,2604.9,2604.8,3.098394]
[1749072450528,0.02,2604.9,2604.7,3.142004]
[1749072461863,0.02,2604.9,2604.8,9.344511]
[1749072462725,0.02,2604.9,2604.8,17.619511]
[1749072466453,0.00105565,2604.9,2604.8,17.619511]
[1749072476373,5.714e-05,2604.9,2604.8,17.619511]
[1749072478990,5.714e-05,2604.9,2604.8,19.235511]
[1749072481387,5.714e-05,2604.9,2604.8,1.616]
[1749072481540,5.714e-05,2604.9,2604.8,7.275414]
[1749072482541,5.714e-05,2604.9,2604.8,13.517414]
[1749072485949,5.714e-05,2604.9,2604.8,7.858]
[1749072486370,4.2228972,2605.3,2604.8,7.858]
[1749072487467,4.2228972,2605.3,2604.9,8.275]
[1749072490247,4.2228972,2605.3,2605.0,1.616]
[1749072490450,4.2228972,2605.3,2605.1,1.616]
[1749072490650,4.2228972,2605.3,2605.2,1.616]
[1749072491501,4.2228972,2605.3,2605.2,7.856]
[1749072497510,4.2228972,2605.3,2605.2,16.131]
[1749072499470,3.6728972,2605.3,2605.2,16.13]
[1749072499669,4.19162692,2605.3,2605.2,16.13]
[1749072501589,4.74162692,2605.3,2605.2,16.13]
[1749072505468,4.74162692,2605.3,2605.2,1.614]
[1749072506811,4.74162692,2605.3,2605.2,7.852]
[1749072507608,4.74162692,2605.3,2605.2,16.127]
[1749072507911,0.02,2604.9,2604.3,30.0]
[1749072508083,0.02,2604.9,2604.5,19.267068]
[1749072509010,0.02,2604.9,2604.6,6.238]
[1749072509226,0.02,2604.9,2604.8,10.0]
[1749072509634,0.00139513,2604.9,2604.8,10.0]
[1749072509922,0.00139513,2604.9,2604.7,4.582241]
[1749072510130,0.00139513,2604.9,2604.8,7.852]
[1749072511701,0.00139513,2604.9,2604.8,17.769573]
[1749072512293,0.00139513,2604.9,2604.8,10.630284]
[1749072513743,0.00139513,2604.9,2604.8,7.851]
[1749072519731,9.691e-05,2604.9,2604.8,16.126]
[1749072525274,9.691e-05,2604.9,2604.8,19.410351]
[1749072526325,9.691e-05,2604.9,2604.8,16.126]
[1749072528548,9.691e-05,2604.9,2604.8,19.364988]
[1749072529276,9.691e-05,2604.9,2604.8,23.0378852]
[1749072529571,5.3196972,2605.8,2604.8,23.0378852]
[1749072529770,5.3196972,2605.8,2604.9,30.0]
[1749072537587,3.6728972,2606.0,2605.1,30.899212]
[1749072537749,0.57,2605.9,2605.1,19.81392]
[1749072540182,3.6728972,2605.8,2605.1,19.81392]
[1749072540385,3.6728972,2605.8,2605.2,6.233]
[1749072543763,3.6728972,2605.8,2605.3,2.896566]
[1749072543963,3.6728972,2605.8,2605.4,1.611]
[1749072547497,3.6728972,2605.8,2605.5,7.843]
[1749072548694,3.6728972,2605.8,2605.6,8.273]
[1749072553708,3.6728972,2605.8,2605.7,6.231]
[1749072558319,3.6728972,2605.8,2605.7,7.84]
[1749072559515,1.5652,2605.9,2605.7,7.84]
[1749072563107,2.1152,2605.9,2605.8,8.273]
[1749072565194,2.69400972,2605.9,2605.8,9.882]
[1749072565408,2.69400972,2605.9,2605.8,16.111]
[1749072571541,2.69400972,2605.9,2605.8,1.609]
[1749072572247,2.1152,2605.9,2605.8,1.609]
[1749072572748,2.1152,2605.9,2605.8,7.838]
[1749072576679,0.57,2605.9,2605.8,7.838]
[1749072577452,0.57,2605.9,2605.8,16.111]
[1749072578861,0.55,2605.9,2605.8,16.111]
[1749072583566,0.55,2605.9,2605.8,9.882]
[1749072583864,0.55,2605.9,2605.8,16.109]
[1749072587527,0.55,2605.9,2605.8,1.607]
[1749072588874,0.55,2605.9,2605.8,7.834]
[1749072590033,0.57,2605.9,2605.8,7.834]
[1749072590672,0.02,2605.9,2605.8,7.834]
[1749072591653,0.00124335,2605.9,2605.8,7.834]
[1749072597496,0.00124335,2605.9,2605.8,16.107]
[1749072600207,3.67414055,2605.9,2605.8,16.105]
[1749072600827,0.00124335,2605.9,2605.8,9.88]
[1749072601030,4.22414055,2605.9,2605.8,16.105]
[1749072603730,2.16004335,2605.9,2605.8,9.88]
[1749072603901,5.83294055,2605.9,2605.8,9.88]
[1749072604221,5.83294055,2605.9,2605.8,1.607]
[1749072604935,5.83294055,2605.9,2605.8,7.832]
[1749072606116,0.55,2605.8,2604.8,30.0]
[1749072606319,5.28294055,2605.9,2605.0,36.972212]
[1749072606506,5.28294055,2605.9,2605.0,26.972212]
[1749072607133,3.6728972,2605.7,2605.0,26.972212]
[1749072607549,3.6728972,2605.7,2605.1,8.273]
[1749072608144,3.6728972,2605.7,2605.3,10.0]
[1749072608359,3.6728972,2605.7,2605.4,7.831]
[1749072609160,3.6728972,2605.7,2605.5,7.831]
[1749072610331,3.6728972,2605.7,2605.6,6.224]
[1749072611748,1.5418,2605.6,2605.1,8.273]
[1749072611955,3.6728972,2605.4,2605.2,1.607]
[1749072612246,3.6728972,2605.4,2605.3,7.831]
[1749072612459,5.2146972,2605.4,2605.3,7.831]
[1749072613854,5.2146972,2605.4,2605.3,1.607]
[1749072614057,5.2146972,2605.4,2605.3,7.831]
[1749072614264,5.2146972,2605.4,2605.3,1.607]
[1749072614440,5.2146972,2605.4,2605.3,7.831]
[1749072614963,6.10345664,2605.4,2605.3,7.831]
[1749072615761,2.1954,2605.2,2605.1,8.273]
[1749072615927,5.8682972,2605.2,2605.1,16.102]
[1749072616126,1.6454,2605.0,2603.2,10.0]
[1749072616323,0.88875944,2605.4,2603.3,3.6728972]
[1749072616324,3.6728972,2604.4,2603.3,3.6728972]
[1749072616539,3.6728972,2604.4,2604.3,19.412]
[1749072617147,1.6454,2604.5,2604.3,13.188]
[1749072617349,3.6728972,2604.4,2604.3,13.188]
[1749072617559,3.6728972,2604.4,2604.3,19.412]
[1749072618227,1.6454,2604.8,2604.3,19.412]
[1749072618435,7.88,2606.2,2604.4,11.368595]
[1749072618436,5.3182972,2605.1,2604.4,11.368595]
[1749072618838,3.6728972,2605.1,2604.4,11.368595]
[1749072619250,1.6454,2605.3,2604.4,11.368595]
[1749072619251,5.13838364,2605.2,2604.4,10.889395]
[1749072620938,5.13838364,2605.2,2604.3,19.412]
[1749072623959,5.13838364,2605.2,2604.4,9.439442]
[1749072624364,5.13838364,2605.2,2604.3,19.412]
[1749072631101,4.58838364,2605.0,2604.5,10.0]
[1749072631280,4.58838364,2605.0,2604.6,10.0]
[1749072631887,4.58838364,2605.0,2604.5,10.0]
[1749072632703,4.58838364,2605.0,2604.6,10.0]
[1749072632875,4.58838364,2605.0,2604.5,10.0]
[1749072633290,4.58838364,2605.0,2604.6,10.0]
[1749072633887,4.58838364,2605.0,2604.5,10.0]
[1749072634814,4.58838364,2605.0,2604.6,10.0]
[1749072635385,4.58838364,2605.0,2604.5,10.0]
[1749072635817,4.58838364,2605.0,2604.6,10.0]
[1749072636182,4.58838364,2605.0,2604.4,10.0]
[1749072636387,4.58838364,2604.6,2604.5,6.223]
[1749072636684,4.58838364,2604.6,2604.3,9.879]
[1749072636887,1.5839,2604.7,2604.5,6.223]
[1749072637922,1.5839,2604.7,2604.3,9.879]
[1749072638125,1.5839,2604.7,2604.4,6.223]
[1749072639788,1.5839,2604.7,2604.5,1.605]
[1749072643313,1.6394,2605.1,2604.6,10.0]
[1749072643920,1.6394,2605.1,2604.5,11.605]
[1749072644233,1.6394,2605.1,2604.6,10.0]
[1749072644413,6.22778364,2605.1,2604.5,11.605]
[1749072647352,6.22778364,2605.1,2604.6,10.0]
[1749072647728,6.22778364,2605.1,2604.5,11.605]
[1749072648321,6.22778364,2605.1,2604.6,10.0]
[1749072648729,6.22778364,2605.1,2604.5,11.605]
[1749072649558,6.22778364,2605.1,2604.6,10.0]
[1749072649758,6.22778364,2605.1,2604.5,11.605]
[1749072649956,6.22778364,2605.1,2604.5,4.09533667]
[1749072650252,6.22778364,2605.1,2604.5,11.605]
[1749072650858,6.22778364,2605.1,2604.6,10.0]
[1749072651730,6.22778364,2605.1,2604.5,11.605]
[1749072652238,6.22778364,2605.1,2604.6,8.276]
[1749072656853,6.22778364,2605.1,2604.7,1.603]
[1749072657047,6.22778364,2605.1,2604.8,10.0]
[1749072659934,6.22778364,2605.1,2604.7,1.603]
[1749072660129,6.22778364,2605.1,2604.8,6.221]
[1749072660466,6.850562,2605.1,2604.8,6.221]
[1749072661539,6.850562,2605.1,2604.7,1.603]
[1749072661743,6.850562,2605.1,2604.8,8.276]
[1749072662865,6.850562,2605.1,2604.9,6.221]
[1749072665971,6.850562,2605.1,2603.5,0.31476022]
[1749072665972,7.400562,2605.1,2605.0,1.603]
[1749072667286,7.400562,2605.1,2605.0,7.824]
[1749072667486,7.400562,2605.1,2605.0,16.1]
[1749072668377,7.400562,2605.1,2603.8,4.58838364]
[1749072668378,0.02,2604.9,2603.9,30.0]
[1749072668561,0.02,2604.9,2604.1,30.0]
[1749072669829,0.02,2604.9,2604.3,15.101662]